fUSD/lending_fUSD_20240609
["ID","MTS","AMOUNT","RATE_DAILY","PERIOD"]
[328868324,1717925452685,-1500.0,0.00028741,2]
[328868325,1717925452824,-150.0,0.00028752,2]
[328868326,1717925452838,-150.0,0.00028753,7]
[328868327,1717925452849,-150.0,0.00028763,2]
[328868328,1717925452859,-150.0,0.00028765,7]
[328868329,1717925452869,-500.0,0.00028767,2]
[328868330,1717925452879,-367.35231988,0.00028767,2]
[328868331,1717925452890,-150.0,0.00028774,7]
[328868332,1717925452900,-150.0,0.0002879,2]
[328868333,1717925452911,-150.0,0.00028792,7]
[328868334,1717925452921,-758.07319351,0.000288,2]
[328868335,1717925452931,-500.0,0.000288,7]
[328868336,1717925452942,-400.0,0.000288,10]
[328868337,1717925452954,-150.0,0.00028801,7]
[328868338,1717925452965,-150.0,0.00028805,2]
[328868339,1717925452975,-150.0,0.00028812,2]
[328868340,1717925452986,-150.0,0.00028813,2]
[328868341,1717925452996,-1500.0,0.00028817,2]
[328868342,1717925453006,-150.0,0.00028819,7]
[328868343,1717925453017,-150.0,0.00028819,2]
[328868344,1717925453028,-150.0,0.0002882,2]
[328868345,1717925453040,-5583.8829742,0.0002882,2]
[328868346,1717925453051,-150.0,0.00028822,2]
[328868347,1717925453061,-150.0,0.00028823,2]
[328868348,1717925453071,-1000.0,0.00028826,2]
[328868349,1717925453081,-216.754837,0.00028832,2]
[328868350,1717925453091,-365.862774,0.00028832,2]
[328868351,1717925453102,-425.449546,0.00028832,2]
[328868352,1717925453112,-216.754838,0.00028832,2]
[328868353,1717925453124,-309.89491,0.00028832,2]
[328868354,1717925453139,-231.197202,0.00028832,2]
[328868355,1717925453148,-150.0,0.00028833,7]
[328868356,1717925453160,-150.0,0.00028839,2]
[328868357,1717925453170,-150.0,0.00028846,2]
[328868358,1717925453183,-150.0,0.00028849,7]
[328868359,1717925453193,-1500.0,0.00028854,2]
[328868360,1717925453203,-150.0,0.00028865,2]
[328868361,1717925453213,-300.0,0.00028867,2]
[328868362,1717925453226,-150.0,0.00028872,7]
[328868363,1717925453237,-150.0,0.00028874,2]
[328868364,1717925453247,-159.64967555,0.00028874,2]
[328868365,1717925453258,-150.0,0.00028882,2]
[328868366,1717925453269,-150.0,0.00028889,2]
[328868367,1717925453280,-150.0,0.00028891,7]
[328868368,1717925453291,-150.0,0.00028897,7]
[328868369,1717925453303,-300.0,0.00028898,2]
[328868370,1717925453314,-691.0,0.000289,2]
[328868371,1717925453326,-160.0,0.000289,2]
[328868372,1717925453337,-10000.0,0.000289,2]
[328868373,1717925453348,-200.0,0.000289,2]
[328868374,1717925453358,-400.0,0.000289,10]
[328868375,1717925453368,-150.0,0.000289,6]
[328868376,1717925453378,-150.0,0.00028901,2]
[328868377,1717925453389,-150.0,0.00028903,2]
[328868378,1717925453399,-300.0,0.00028903,2]
[328868379,1717925453409,-150.0,0.00028906,2]
[328868380,1717925453420,-1500.0,0.00028914,2]
[328868381,1717925453430,-150.0,0.00028924,2]
[328868382,1717925453441,-150.0,0.00028926,7]
[328868383,1717925453451,-150.0,0.00028926,7]
[328868384,1717925453461,-150.0,0.00028926,7]
[328868385,1717925453471,-150.0,0.00028929,2]
[328868386,1717925453483,-5583.8829742,0.0002894,2]
[328868387,1717925453494,-150.0,0.00028945,7]
[328868388,1717925453504,-300.0,0.00028947,2]
[328868389,1717925453514,-150.0,0.00028948,2]
[328868390,1717925453525,-150.0,0.00028949,7]
[328868391,1717925453535,-150.0,0.00028954,2]
[328868392,1717925453546,-150.0,0.00028963,2]
[328868393,1717925453556,-150.0,0.00028963,2]
[328868394,1717925453566,-1500.0,0.00028969,2]
[328868395,1717925453577,-3010.0645021,0.00028972,5]
[328868396,1717925453587,-381.97827758,0.00028973,2]
[328868397,1717925453598,-179.37882463,0.00028974,2]
[328868398,1717925453610,-277.89038856,0.00028976,2]
[328868399,1717925453621,-155.18198312,0.00028978,2]
[328868400,1717925453633,-485.13738798,0.00028978,7]
[328868401,1717925453644,-473197.57606514,0.00028979,2]
[328868402,1717925453656,-1500.0,0.00028979,2]
[328868403,1717925453666,-150.0,0.0002898,7]
[328868404,1717925453677,-4990.28,0.00028982,2]
[328868405,1717925453688,-150.0,0.00028993,7]
[328868406,1717925453698,-1085.77028475,0.00028999,15]
[328868407,1717925453708,-155.05967244,0.00028999,2]
[328868408,1717925453718,-4169.40701343,0.00029,2]
[328868409,1717925453728,-1488.41303663,0.00029,2]
[328868410,1717925453738,-270.06932839,0.00029,2]
[328868411,1717925453748,-5103.8,0.00029,2]
[328868412,1717925453758,-200.0,0.00029,2]
[328868413,1717925453769,-208.21636971,0.00029,7]
[328868414,1717925453779,-2200.0,0.00029,10]
[328868415,1717925453790,-19992.0,0.00029,2]
[328868416,1717925453800,-500000.0,0.00029,2]
[328868417,1717925453810,-2238.80975308,0.00029,3]
[328868418,1717925453821,-1350.0,0.00029,2]
[328868419,1717925453831,-182.5807,0.00029,2]
[328868420,1717925453843,-354.0679,0.00029,2]
[328868421,1717925453853,-1239.80802078,0.00029,2]
[328868422,1717925453863,-1239.80802078,0.00029,2]
[328868423,1717925453874,-1239.80802078,0.00029,2]
[328868424,1717925453884,-1239.80802078,0.00029,2]
[328868425,1717925453893,-1239.80802078,0.00029,2]
[328868426,1717925453904,-1239.80802078,0.00029,2]
[328868427,1717925453913,-1239.80802078,0.00029,2]
[328868428,1717925453923,-1239.80802078,0.00029,2]
[328868429,1717925453933,-1239.80802078,0.00029,2]
[328868430,1717925453944,-1239.80802078,0.00029,2]
[328868431,1717925453954,-1239.80802078,0.00029,2]
[328868432,1717925453964,-1239.80802078,0.00029,2]
[328868433,1717925453974,-1239.80802078,0.00029,2]
[328868434,1717925453984,-1239.80802078,0.00029,2]
[328868435,1717925453994,-1239.80802078,0.00029,2]
[328868436,1717925454005,-1239.80802078,0.00029,2]
[328868437,1717925454014,-1239.80802078,0.00029,2]
[328868438,1717925454025,-1239.80802078,0.00029,2]
[328868439,1717925454035,-1239.80802078,0.00029,2]
[328868440,1717925454045,-1239.80802078,0.00029,2]
[328868441,1717925454056,-1239.80802078,0.00029,2]
[328868442,1717925454066,-1239.80802078,0.00029,2]
[328868443,1717925454077,-1239.80802078,0.00029,2]
[328868444,1717925454087,-1239.80802078,0.00029,2]
[328868445,1717925454098,-1239.80802078,0.00029,2]
[328868446,1717925454108,-1239.80802078,0.00029,2]
[328868447,1717925454119,-1239.80802078,0.00029,2]
[328868448,1717925454129,-1239.80802078,0.00029,2]
[328868449,1717925454144,-1239.80802078,0.00029,2]
[328868450,1717925454155,-1239.80802078,0.00029,2]
[328868451,1717925454165,-1239.80802078,0.00029,2]
[328868452,1717925454176,-1239.80802078,0.00029,2]
[328868453,1717925454187,-1239.80802078,0.00029,2]
[328868454,1717925454198,-1239.80802078,0.00029,2]
[328868455,1717925454210,-1239.80802078,0.00029,2]
[328868456,1717925454219,-1239.80802078,0.00029,2]
[328868457,1717925454229,-1239.80802078,0.00029,2]
[328868458,1717925454239,-1239.80802078,0.00029,2]
[328868459,1717925454249,-1239.80802078,0.00029,2]
[328868460,1717925454258,-1239.80802078,0.00029,2]
[328868461,1717925454268,-1239.80802078,0.00029,2]
[328868462,1717925454279,-1239.80802078,0.00029,2]
[328868463,1717925454288,-1239.80802078,0.00029,2]
[328868464,1717925454298,-1239.80802078,0.00029,2]
[328868465,1717925454308,-1239.80802078,0.00029,2]
[328868466,1717925454318,-1239.80802078,0.00029,2]
[328868467,1717925454329,-1239.80802078,0.00029,2]
[328868468,1717925454339,-1239.80802078,0.00029,2]
[328868469,1717925454349,-1239.80802078,0.00029,2]
[328868470,1717925454359,-1239.80802078,0.00029,2]
[328868471,1717925454370,-1239.80802078,0.00029,2]
[328868472,1717925454381,-1239.80802078,0.00029,2]
[328868473,1717925454392,-1239.80802078,0.00029,2]
[328868474,1717925454402,-1239.80802078,0.00029,2]
[328868475,1717925454413,-1239.80802078,0.00029,2]
[328868476,1717925454423,-1239.80802078,0.00029,2]
[328868477,1717925454434,-1239.80802078,0.00029,2]
[328868478,1717925454445,-1239.80802078,0.00029,2]
[328868479,1717925454455,-1239.80802078,0.00029,2]
[328868480,1717925454466,-1239.80802078,0.00029,2]
[328868481,1717925454476,-1239.80802078,0.00029,2]
[328868482,1717925454486,-1239.80802078,0.00029,2]
[328868483,1717925454497,-1239.80802078,0.00029,2]
[328868484,1717925454507,-1239.80802078,0.00029,2]
[328868485,1717925454518,-1239.80802078,0.00029,2]
[328868486,1717925454528,-1239.80802078,0.00029,2]
[328868487,1717925454539,-1239.80802078,0.00029,2]
[328868488,1717925454550,-1239.80802078,0.00029,2]
[328868489,1717925454561,-1239.80802078,0.00029,2]
[328868490,1717925454572,-1239.80802078,0.00029,2]
[328868491,1717925454582,-1239.80802078,0.00029,2]
[328868492,1717925454593,-1239.80802078,0.00029,2]
[328868493,1717925454604,-1239.80802078,0.00029,2]
[328868494,1717925454614,-1239.80802078,0.00029,2]
[328868495,1717925454625,-1239.80802078,0.00029,2]
[328868496,1717925454635,-1239.80802078,0.00029,2]
[328868497,1717925454644,-1239.80802078,0.00029,2]
[328868498,1717925454654,-1239.80802078,0.00029,2]
[328868499,1717925454664,-1239.80802078,0.00029,2]
[328868500,1717925454674,-1239.80802078,0.00029,2]
[328868501,1717925454684,-1239.80802078,0.00029,2]
[328868502,1717925454695,-1239.80802078,0.00029,2]
[328868503,1717925454704,-1239.80802078,0.00029,2]
[328868504,1717925454714,-1239.80802078,0.00029,2]
[328868505,1717925454724,-1239.80802078,0.00029,2]
[328868506,1717925454733,-1239.80802078,0.00029,2]
[328868507,1717925454743,-1239.80802078,0.00029,2]
[328868508,1717925454753,-1239.80802078,0.00029,2]
[328868509,1717925454763,-1239.80802078,0.00029,2]
[328868510,1717925454773,-1239.80802078,0.00029,2]
[328868511,1717925454783,-1239.80802078,0.00029,2]
[328868512,1717925454793,-1239.80802078,0.00029,2]
[328868513,1717925454803,-1239.80802078,0.00029,2]
[328868514,1717925454813,-1239.80802078,0.00029,2]
[328868515,1717925454823,-1239.80802078,0.00029,2]
[328868516,1717925454832,-1239.80802078,0.00029,2]
[328868517,1717925454843,-1239.80802078,0.00029,2]
[328868518,1717925454852,-1239.80802078,0.00029,2]
[328868519,1717925454862,-1239.80802078,0.00029,2]
[328868520,1717925454872,-1239.80802078,0.00029,2]
[328868521,1717925454882,-150.0,0.00029007,2]
[328868522,1717925454891,-150.0,0.00029007,2]
[328868523,1717925454901,-150.0,0.00029008,7]
[328868524,1717925454911,-150.0,0.00029021,2]
[328868525,1717925454921,-336.42265876,0.00029025,8]
[328868526,1717925454931,-157.26422373,0.00029029,2]
[328868527,1717925454941,-150.0,0.00029032,2]
[328868528,1717925454951,-150.0,0.00029033,7]
[328868529,1717925454961,-150.0,0.00029041,7]
[328868530,1717925454971,-5583.8829742,0.0002906,2]
[328868531,1717925454981,-150.0,0.0002906,7]
[328868532,1717925454991,-150.0,0.00029066,7]
[328868533,1717925455002,-150.0,0.00029076,2]
[328868534,1717925455012,-150.0,0.00029087,7]
[328868535,1717925455022,-150.0,0.00029089,7]
[328868536,1717925455032,-150.0,0.00029092,2]
[328868537,1717925455042,-150.0,0.00029097,2]
[328868538,1717925455052,-47340.9437579,0.000291,3]
[328868539,1717925455062,-150.0,0.000291,6]
[328868540,1717925455073,-1000.0,0.000291,2]
[328868541,1717925455083,-300.0,0.00029102,2]
[328868542,1717925455094,-150.0,0.00029117,2]
[328868543,1717925455104,-205.0,0.0002912,2]
[328868544,1717925455114,-150.0,0.00029124,7]
[328868545,1717925455124,-2104.21,0.00029132,2]
[328868546,1717925455137,-150.0,0.00029137,7]
[328868547,1717925455147,-150.0,0.00029141,7]
[328868548,1717925455157,-150.0,0.00029148,2]
[328868549,1717925455167,-150.0,0.00029168,2]
[328868550,1717925455177,-209.442227,0.0002918,2]
[328868551,1717925455187,-216.754837,0.0002918,2]
[328868552,1717925455198,-365.862774,0.0002918,2]
[328868553,1717925455208,-425.449546,0.0002918,2]
[328868554,1717925455221,-216.754838,0.0002918,2]
[328868555,1717925455232,-309.89491,0.0002918,2]
[328868556,1717925455242,-231.197202,0.0002918,2]
[328868557,1717925455252,-5583.8829742,0.0002918,2]
[328868558,1717925455262,-150.0,0.00029183,7]
[328868559,1717925455272,-150.0,0.00029185,7]
[328868560,1717925455283,-150.0,0.00029189,2]
[328868561,1717925455293,-150.0,0.00029194,2]
[328868562,1717925455303,-150.0,0.00029195,7]
[328868563,1717925455314,-150.0,0.00029195,7]
[328868564,1717925455324,-150.0,0.00029195,7]
[328868565,1717925455365,-1031.74242248,0.000292,4]
[328868566,1717925455376,-500.0,0.00029215,15]
[328868567,1717925455387,-693.83,0.00029215,15]
[328868568,1717925455397,-1500.0,0.00029222,2]
[328868569,1717925455407,-160.12230014,0.00029229,2]
[328868570,1717925455417,-150.0,0.00029233,7]
[328868571,1717925455427,-1500.0,0.00029233,2]
[328868572,1717925455437,-601.61474654,0.0002924,2]
[328868573,1717925455448,-150.0,0.00029241,7]
[328868574,1717925455459,-3861.26442005,0.00029243,2]
[328868575,1717925455470,-150.0,0.00029248,7]
[328868576,1717925455480,-1500.0,0.00029273,2]
[328868577,1717925455490,-150.277927,0.00029275,2]
[328868578,1717925455500,-180.34385,0.00029275,2]
[328868579,1717925455510,-159.054364,0.00029275,2]
[328868580,1717925455520,-159.054364,0.00029275,2]
[328868581,1717925455530,-174.948268,0.00029275,2]
[328868582,1717925455541,-432.825239,0.00029275,2]
[328868583,1717925455551,-360.667023,0.00029275,2]
[328868584,1717925455560,-707.421491,0.00029275,2]
[328868585,1717925455570,-704.491979,0.00029275,2]
[328868586,1717925455580,-150.0,0.00029281,7]
[328868587,1717925455590,-300.0,0.00029283,2]
[328868588,1717925455601,-151.0,0.00029288,7]
[328868589,1717925455611,-1500.0,0.00029289,2]
[328868590,1717925455621,-1500.0,0.00029295,2]
[328868591,1717925455632,-150.0,0.000293,7]
[328868592,1717925455641,-5583.8829742,0.000293,2]
[328868593,1717925455650,-150.0,0.00029302,7]
[328868594,1717925455659,-150.0,0.00029308,2]
[328868595,1717925455669,-150.0,0.00029319,2]
[328868596,1717925455679,-150.0,0.00029329,7]
[328868597,1717925455688,-150.0,0.00029329,7]
[328868598,1717925455698,-150.0,0.00029329,7]
[328868599,1717925455708,-150.0,0.00029333,2]
[328868600,1717925455717,-150.0,0.00029339,2]
[328868601,1717925455727,-1500.0,0.00029344,2]
[328868602,1717925455736,-1500.0,0.00029349,2]
[328868603,1717925455746,-150.0,0.00029351,2]
[328868604,1717925455756,-150.0,0.00029356,7]
[328868605,1717925455766,-150.0,0.00029358,7]
[328868606,1717925455776,-150.0,0.00029375,2]
[328868607,1717925455786,-150.0,0.00029377,7]
[328868608,1717925455796,-266.0,0.00029379,9]
[328868609,1717925455806,-150.0,0.00029388,2]
[328868610,1717925455818,-150.0,0.00029397,2]
[328868611,1717925455827,-1500.0,0.00029401,2]
[328868612,1717925455837,-150.0,0.00029401,2]
[328868613,1717925455847,-300.0,0.00029407,2]
[328868614,1717925455856,-157.95241565,0.00029409,2]
[328868615,1717925455865,-150.0,0.00029409,7]
[328868616,1717925455875,-1500.0,0.00029415,2]
[328868617,1717925455886,-150.0,0.00029416,7]
[328868618,1717925455895,-5583.8829742,0.0002942,2]
[328868619,1717925455905,-1500.0,0.00029424,2]
[328868620,1717925455914,-150.0,0.00029425,7]
[328868621,1717925455924,-300.0,0.00029437,2]
[328868622,1717925455935,-150.0,0.00029438,2]
[328868623,1717925455946,-1500.0,0.00029446,2]
[328868624,1717925455956,-150.0,0.00029453,2]
[328868625,1717925455967,-150.0,0.00029462,2]
[328868626,1717925455977,-154.04493063,0.00029463,2]
[328868627,1717925455987,-150.0,0.00029463,7]
[328868628,1717925455998,-150.0,0.00029463,7]
[328868629,1717925456008,-150.0,0.00029463,7]
[328868630,1717925456018,-1813.86691173,0.00029467,2]
[328868631,1717925456029,-1500.0,0.00029469,2]
[328868632,1717925456041,-2477017.41398778,0.0002947,7]
[328868633,1717925456067,-871327.77561889,0.0002947,7]
[328868634,1717925456077,-150.0,0.00029472,2]
[328868635,1717925456087,-150.0,0.00029473,7]
[328868636,1717925456099,-150.0,0.00029475,7]
[328868637,1717925456110,-1500.0,0.00029484,2]
[328868638,1717925456121,-150.0,0.00029484,2]
[328868639,1717925456132,-152.0,0.00029486,5]
[328868640,1717925456146,-500.0,0.00029489,15]
[328868641,1717925456157,-528686.66590635,0.00029489,2]
[328868642,1717925456168,-99729.05443244,0.00029489,2]
[328868643,1717925456179,-367.22,0.000295,14]
[328868644,1717925456190,-227.28159052,0.000295,3]
[328868645,1717925456200,-1540.719535,0.000295,2]
[328868646,1717925456210,-1500.0,0.00029504,2]
[328868647,1717925456222,-300.0,0.00029506,2]
[328868648,1717925456232,-150.0,0.00029506,2]
[328868649,1717925456242,-300.0,0.00029508,2]
[328868650,1717925456252,-150.0,0.00029509,2]
[328868651,1717925456262,-150.0,0.00029512,2]
[328868652,1717925456271,-300.0,0.00029513,2]
[328868653,1717925456281,-150.0,0.00029517,7]
[328868654,1717925456290,-1500.0,0.00029517,2]
[328868655,1717925456300,-150.0,0.00029521,7]
[328868656,1717925456310,-150.0,0.00029522,2]
[328868657,1717925456320,-150.0,0.00029523,2]
[328868658,1717925456330,-150.0,0.00029531,2]
[328868659,1717925456340,-150.0,0.00029533,7]
[328868660,1717925456349,-5583.8829742,0.0002954,2]
[328868661,1717925456359,-150.0,0.00029542,2]
[328868662,1717925456368,-1500.0,0.00029551,2]
[328868663,1717925456378,-150.0,0.00029551,2]
[328868664,1717925456388,-205.0,0.0002956,2]
[328868665,1717925456397,-150.0,0.0002956,2]
[328868666,1717925456408,-5000.0,0.00029561,2]
[328868667,1717925456418,-1500.0,0.00029562,2]
[328868668,1717925456428,-150.0,0.00029564,2]
[328868669,1717925456438,-150.0,0.00029568,7]
[328868670,1717925456448,-150.0,0.0002957,7]
[328868671,1717925456457,-1500.0,0.00029571,2]
[328868672,1717925456467,-150.0,0.00029572,2]
[328868673,1717925456476,-1500.0,0.00029574,2]
[328868674,1717925456486,-150.0,0.00029574,2]
[328868675,1717925456497,-98458.44719881,0.00029575,2]
[328868676,1717925456507,-1500.0,0.00029577,2]
[328868677,1717925456518,-150.0,0.00029578,2]
[328868678,1717925456528,-154.63818244,0.00029579,2]
[328868679,1717925456537,-150.0,0.00029585,2]
[328868680,1717925456548,-150.0,0.00029591,7]
[328868681,1717925456558,-1500.0,0.00029592,2]
[328868682,1717925456568,-300.90571863,0.00029594,2]
[328868683,1717925456580,-150.0,0.00029597,7]
[328868684,1717925456590,-1500.0,0.00029598,2]
[328868685,1717925456601,-47915.68,0.000296,5]
[328868686,1717925456612,-2311.079303,0.000296,2]
[328868687,1717925456622,-400.0,0.000296,10]
[328868688,1717925456632,-150.0,0.000296,6]
[328868689,1717925456642,-150.0,0.00029605,2]
[328868690,1717925456651,-1500.0,0.00029608,2]
[328868691,1717925456661,-1500.0,0.00029616,2]
[328868692,1717925456671,-150.0,0.00029616,7]
[328868693,1717925456681,-150.0,0.00029624,2]
[328868694,1717925456691,-150.0,0.00029624,7]
[328868695,1717925456701,-150.0,0.00029631,2]
[328868696,1717925456711,-150.0,0.00029632,2]
[328868697,1717925456720,-1500.0,0.00029641,2]
[328868698,1717925456730,-150.0,0.00029644,2]
[328868699,1717925456740,-1500.0,0.00029646,2]
[328868700,1717925456751,-150.0,0.0002965,7]
[328868701,1717925456760,-300.0,0.00029651,2]
[328868702,1717925456770,-300.0,0.00029657,2]
[328868703,1717925456781,-150.0,0.00029658,2]
[328868704,1717925456791,-5583.8829742,0.0002966,2]
[328868705,1717925456801,-1500.0,0.00029662,2]
[328868706,1717925456811,-150.0,0.00029664,7]
[328868707,1717925456822,-150.0,0.00029678,7]
[328868708,1717925456832,-1500.0,0.00029678,2]
[328868709,1717925456842,-300.0,0.00029681,2]
[328868710,1717925456852,-1500.0,0.00029694,2]
[328868711,1717925456862,-1500.0,0.00029698,2]
[328868712,1717925456872,-11664.1888965,0.000297,2]
[328868713,1717925456882,-164.73,0.000297,4]
[328868714,1717925456892,-164.731,0.000297,4]
[328868715,1717925456902,-164.731,0.000297,4]
[328868716,1717925456912,-164.731,0.000297,4]
[328868717,1717925456923,-164.731,0.000297,4]
[328868718,1717925456934,-3081.439071,0.000297,2]
[328868719,1717925456945,-280.0,0.000297,2]
[328868720,1717925456955,-400.0,0.000297,10]
[328868721,1717925456965,-1006.0,0.000297,2]
[328868722,1717925456975,-311.4,0.000297,2]
[328868723,1717925456985,-150.0,0.00029708,7]
[328868724,1717925456995,-150.0,0.00029712,2]
[328868725,1717925457005,-150.0,0.00029712,7]
[328868726,1717925457015,-1500.0,0.00029717,2]
[328868727,1717925457025,-150.0,0.00029721,2]
[328868728,1717925457035,-150.0,0.00029727,2]
[328868729,1717925457045,-150.0,0.00029732,7]
[328868730,1717925457055,-150.0,0.00029732,7]
[328868731,1717925457064,-150.0,0.00029732,7]
[328868732,1717925457074,-1500.0,0.00029732,2]
[328868733,1717925457084,-150.0,0.00029733,2]
[328868734,1717925457094,-500.0,0.00029734,3]
[328868735,1717925457105,-150.0,0.00029739,2]
[328868736,1717925457115,-500.0,0.00029743,3]
[328868737,1717925457125,-1500.0,0.00029747,2]
[328868738,1717925457139,-500.0,0.00029752,3]
[328868739,1717925457149,-150.0,0.0002976,7]
[328868740,1717925457159,-500.0,0.0002976,3]
[328868741,1717925457170,-500.0,0.00029762,15]
[328868742,1717925457181,-1989.19135126,0.00029763,11]
[328868743,1717925457193,-246.30615938,0.00029763,2]
[328868744,1717925457203,-150.0,0.00029767,7]
[328868745,1717925457215,-1500.0,0.00029768,2]
[328868746,1717925457226,-500.0,0.00029769,3]
[328868747,1717925457237,-1500.0,0.00029772,2]
[328868748,1717925457247,-500.0,0.00029778,3]
[328868749,1717925457257,-1989.19135123,0.00029778,11]
[328868750,1717925457267,-150.0,0.00029779,2]
[328868751,1717925457277,-5583.8829742,0.0002978,2]
[328868752,1717925457287,-1500.0,0.00029781,2]
[328868753,1717925457297,-1500.0,0.00029782,2]
[328868754,1717925457307,-150.0,0.00029785,7]
[328868755,1717925457318,-500.0,0.00029787,3]
[328868756,1717925457328,-300.0,0.00029789,2]
[328868757,1717925457339,-150.0,0.00029789,2]
[328868758,1717925457349,-1989.19135123,0.00029793,11]
[328868759,1717925457359,-1500.0,0.00029795,2]
[328868760,1717925457369,-500.0,0.00029796,3]
[328868761,1717925457378,-1031.98,0.000298,20]
[328868762,1717925457388,-500.0,0.000298,2]
[328868763,1717925457398,-500000.0,0.000298,2]
[328868764,1717925457408,-4338.0,0.000298,2]
[328868765,1717925457420,-3851.798839,0.000298,2]
[328868766,1717925457430,-5392.518375,0.000298,2]
[328868767,1717925457440,-6162.878143,0.000298,30]
[328868768,1717925457450,-11205.30902875,0.000298,30]
[328868769,1717925457460,-182.5807,0.000298,2]
[328868770,1717925457470,-940.0,0.000298,10]
[328868771,1717925457480,-354.0679,0.000298,2]
[328868772,1717925457490,-150.0,0.00029803,2]
[328868773,1717925457500,-150.0,0.00029804,2]
[328868774,1717925457510,-500.0,0.00029804,3]
[328868775,1717925457520,-150.0,0.00029808,7]
[328868776,1717925457530,-1989.19135123,0.00029809,11]
[328868777,1717925457540,-1500.0,0.00029812,2]
[328868778,1717925457551,-1500.0,0.00029813,2]
[328868779,1717925457561,-500.0,0.00029813,3]
[328868780,1717925457571,-300.0,0.00029815,2]
[328868781,1717925457581,-1500.0,0.00029815,2]
[328868782,1717925457593,-150.0,0.00029815,2]
[328868783,1717925457603,-150.0,0.00029817,2]
[328868784,1717925457613,-1500.0,0.00029817,2]
[328868785,1717925457623,-1500.0,0.00029817,2]
[328868786,1717925457633,-150.0,0.00029818,2]
[328868787,1717925457643,-500.0,0.00029822,3]
[328868788,1717925457654,-1989.19135123,0.00029824,11]
[328868789,1717925457666,-150.0,0.00029825,7]
[328868790,1717925457676,-150.0,0.00029829,2]
[328868791,1717925457686,-500.0,0.00029831,3]
[328868792,1717925457697,-150.0,0.00029838,2]
[328868793,1717925457708,-150.0,0.00029839,7]
[328868794,1717925457718,-1989.19135123,0.00029839,11]
[328868795,1717925457727,-500.0,0.0002984,3]
[328868796,1717925457738,-150.0,0.00029845,2]
[328868797,1717925457748,-500.0,0.00029848,3]
[328868798,1717925457758,-300.0,0.0002985,2]
[328868799,1717925457769,-1989.19135123,0.00029854,11]
[328868800,1717925457779,-150.0,0.00029855,2]
[328868801,1717925457789,-150.0,0.00029856,7]
[328868802,1717925457799,-1500.0,0.00029857,2]
[328868803,1717925457809,-500.0,0.00029857,3]
[328868804,1717925457820,-150.0,0.0002986,2]
[328868805,1717925457831,-1476.91683573,0.0002986,2]
[328868806,1717925457841,-300.0,0.00029861,2]
[328868807,1717925457851,-500.0,0.00029863,2]
[328868808,1717925457861,-500.0,0.00029863,2]
[328868809,1717925457872,-454.30900936,0.00029863,2]
[328868810,1717925457882,-235.36399607,0.00029863,4]
[328868811,1717925457892,-1000.0,0.00029863,2]
[328868812,1717925457902,-1006.87664485,0.00029863,2]
[328868813,1717925457912,-158.20894934,0.00029863,4]
[328868814,1717925457922,-500.0,0.00029863,2]
[328868815,1717925457932,-505.15358429,0.00029863,2]
[328868816,1717925457943,-204.32757623,0.00029863,4]
[328868817,1717925457953,-500.0,0.00029863,4]
[328868818,1717925457964,-500.0,0.00029863,4]
[328868819,1717925457974,-401.09211272,0.00029863,4]
[328868820,1717925457985,-609.40287919,0.00029863,4]
[328868821,1717925457995,-500.0,0.00029863,4]
[328868822,1717925458004,-507.24501681,0.00029863,4]
[328868823,1717925458014,-614.17904766,0.00029863,4]